Cogmind - Beta 13 @@@ ROGUE MODE // 2024.05.05 @ 23:24:43 Player: Spoodle Result: Destroyed by as-82666 with Assembled Blade Performance ------------- Evolutions (0) 0 Regions Visited (4) 800 Robots Destroyed (27) 135 Value Destroyed (577) 577 Prototype IDs (4) 80 Alien Tech Used (0) 0 Bonus (0) 0 TOTAL SCORE: 1592 Bonus ------- None Cogmind --------- Core Integrity 0/250 Matter 208/300 Energy 100/100 System Corruption 2% Temperature Cool (0) Movement Core (350) Ox6 Location -9/Mines Parts ------- > --- POWER (1) -------- (None) > --- PROPULSION (2) --- (None) > --- UTILITY (2) ------ Large Storage Unit > --- WEAPON (2) ------- (None) > --- INVENTORY (15) --- Ion Engine Light Nuclear Core Armored Wheel Heat Sink Small Storage Unit Seismic Detector EM Pulse Gun EM Pulse Gun Medium Laser Beam Rifle Particle Gun Mining Laser Peak State ------------ > --- POWER ------------ Improved Ion Engine > --- PROPULSION ------- Light Treads Wheel > --- UTILITY ---------- Improved Heat Sink Large Storage Unit > --- WEAPON ----------- Beam Rifle Assault Rifle > --- INVENTORY -------- Ion Engine Light Nuclear Core Wheel Armored Wheel Heat Sink Small Storage Unit Seismic Detector Light Armor Plating EM Pulse Gun EM Pulse Gun Medium Laser Particle Gun Heavy Assault Rifle Heavy Assault Rifle Mining Laser [Rating: 13] Favorites ----------- Power Ion Engine Engine Ion Engine Propulsion Light Treads Treads Light Treads Wheel Wheel Utility Large Storage Unit Device Seismic Detector Storage Large Storage Unit Protection Light Armor Plating Weapon Assault Rifle Energy Gun Medium Laser Ballistic Gun Assault Rifle Special Weapon Mining Laser Build | -11 -10 -10 -10 -9 ------- Run | Yrd Mat Min Exi Min Slots Evolved . | . . . . . Power . | . . . . . Propulsion . | . . . . . Utility . | . . . . . Weapon . | . . . . . Parts Attached 31 | 7 6 9 1 8 Power 3 | 1 . 2 . . Engine 3 | 1 . 2 . . Core . | . . . . . Reactor . | . . . . . Propulsion 6 | 2 . 2 . 2 Treads 4 | 2 . 1 . 1 Leg . | . . . . . Wheel 2 | . . 1 . 1 Hover . | . . . . . Flight . | . . . . . Utility 8 | 2 3 1 . 2 Device 3 | 1 1 . . 1 Storage 2 | 1 1 . . . Processor . | . . . . . Hackware . | . . . . . Protection 3 | . 1 1 . 1 Artifact . | . . . . . Weapon 14 | 2 3 4 1 4 Energy Gun 7 | 2 2 2 . 1 Energy Cannon . | . . . . . Ballistic Gun 6 | . 1 2 . 3 Ballistic Cannon . | . . . . . Launcher . | . . . . . Special Weapon 1 | . . . 1 . Impact Weapon . | . . . . . Slashing Weapon . | . . . . . Piercing Weapon . | . . . . . Special Melee Weapon . | . . . . . Unidentified Prototypes . | . . . . . Parts Lost 12 | . . 3 . 9 Power 2 | . . 1 . 1 Propulsion 5 | . . 2 . 3 Utility 2 | . . . . 2 Weapon 3 | . . . . 3 Highest Loss Streak 9 | . . 1 . 9 To Critical Strikes . | . . . . . Average Slot Usage (%) 98 | . 100 97 100 93 Engine 13 | . 14 13 14 14 Treads 19 | . 28 15 14 12 Wheel 8 | . . 10 14 14 Device 6 | . 13 3 . 4 Storage 14 | . 14 14 14 14 Protection 7 | . . 10 14 6 Energy Gun 13 | . 20 14 4 9 Ballistic Gun 12 | . 7 13 14 16 Special Weapon 2 | . . . 9 1 Naked Turns . | . . . . . Heaviest Build 35 | 14 31 34 34 35 Greatest Support 40 | 40 40 40 10 20 Greatest Overweight (x) 6 | . . 3 3 6 Average Overweight (x) 1 | . . 1 3 2 Largest Inventory Capacity 15 | 8 15 15 15 15 Average Capacity 13 | 7 12 15 15 15 Most Carried 15 | 7 15 15 15 15 Average Carried 13 | 4 11 14 15 14 Final Capacity 15 | 8 15 15 15 15 Final Carried 15 | 7 15 15 15 12 Class Distribution -------------------- 97% | Mutant Dominant Class ---------------- Mutant | -10/Materials Mutant | -10/Mines Mutant | -10/Exiles Mutant | -9/Mines Resources | -11 -10 -10 -10 -9 ----------- Run | Yrd Mat Min Exi Min Matter Collected 714 | 251 199 189 . 75 Remotely . | . . . . . Salvage Created 928 | 42 566 262 . 58 Parts 57 | 5 33 11 . 8 Haulers Intercepted 1 | . 1 . . . Recyclers Shooed 1 | . 1 . . . Parts Field Recycled . | . . . . . Retrieved Matter . | . . . . . Parts Self-Destructed . | . . . . . Prevented . | . . . . . Kills | -11 -10 -10 -10 -9 ------- Run | Yrd Mat Min Exi Min Combat Hostiles Destroyed 19 | . 11 4 . 4 Guns 19 | . 11 4 . 4 Classes Destroyed 9 | 1 7 . . 1 Builder 1 | . 1 . . . Tunneler 2 | 2 . . . . Hauler 1 | . 1 . . . Recycler 2 | . 1 1 . . Operator 1 | . 1 . . . Watcher 1 | . 1 . . . Swarmer 8 | . 5 . . 3 Grunt 10 | . 6 4 . . Demolisher 1 | . . . . 1 Best Kill Streak 3 | 1 3 1 . 3 Combat Bots Only 3 | . 3 1 . 3 Max Kills in Single Turn 1 | 1 1 1 . 1 Gunslinging . | . . . . . Exploded . | . . . . . Melee . | . . . . . Uniques/NPCs Destroyed . | . . . . . Combat | -11 -10 -10 -10 -9 -------- Run | Yrd Mat Min Exi Min Hostile Shots Fired 141 | . 55 42 . 44 Missed 35 | . 14 12 . 9 Damage Taken 1679 | . 417 416 . 846 Core 270 | . 62 107 . 101 Absorbed by Shields . | . . . . . Core Remaining (%) 100 | 100 . . . . Volleys Fired 94 | 3 42 29 3 17 Largest 2 | 2 2 2 1 2 Hottest 100 | 80 80 90 100 76 Shots Fired 188 | 6 85 58 4 35 Gun 185 | 6 85 58 1 35 Cannon . | . . . . . Launcher . | . . . . . Special 3 | . . . 3 . Kinetic 87 | . 35 24 1 27 Thermal 79 | 3 36 29 3 8 Explosive . | . . . . . Electromagnetic 22 | 3 14 5 . . Robot Hit Streak 7 | 1 7 7 . 5 Robot Miss Streak 6 | 3 5 2 . 6 Penetration Max . | . . . . . Secondary Targets 3 | . . 1 . 2 Max Gunslinging Chain 1 | . . 1 . 1 Shots Hit Robots 111 | 2 49 44 . 16 Core Hits 44 | 2 22 13 . 7 Critical Kills . | . . . . . Critical Parts Destroyed . | . . . . . Critical Strikes 1 | . . . . 1 Burn 1 | . . . . 1 Melee Attacks . | . . . . . Impact . | . . . . . Slashing . | . . . . . Piercing . | . . . . . Sneak Attacks . | . . . . . Combat Hostiles . | . . . . . Follow-up Attacks . | . . . . . Damage Inflicted 1530 | 24 704 558 . 244 Guns 1449 | 24 623 558 . 244 Cannons . | . . . . . Explosions 81 | . 81 . . . Melee . | . . . . . Ramming . | . . . . . Kinetic 669 | . 243 226 . 200 Thermal 674 | 11 359 260 . 44 Explosive . | . . . . . Electromagnetic 187 | 13 102 72 . . Impact . | . . . . . Slashing . | . . . . . Piercing . | . . . . . Highest Corruption 2 | . 2 2 2 2 Average Corruption 2 | . 2 2 2 2 Corruption Purged . | . . . . . Corruption Blocked . | . . . . . Effects 38 | . 8 17 7 6 Message Errors 10 | . 2 5 1 2 Matter Fused 11 | . 2 6 1 2 Heat Flow Errors 3 | . 1 1 . 1 Energy Discharges 2 | . . 1 1 . Data Loss (minor) 6 | . 1 2 3 . Data Loss (major) 3 | . 1 2 . . Misfires 3 | . 1 . 1 1 Overload Shots . | . . . . . Overflow Damage 8 | . 8 . . . Projectiles . | . . . . . Explosions 8 | . 8 . . . Melee . | . . . . . Knockbacks . | . . . . . Impact . | . . . . . Kinetic . | . . . . . Secondary . | . . . . . Self-Inflicted Damage 23 | . 23 . . . Shots 1 | . 1 . . . Rammed . | . . . . . Targets Rammed . | . . . . . Kicked . | . . . . . Crushed . | . . . . . Highest Temperature 475 | 36 209 237 60 475 Average Temperature 80 | 18 39 88 28 190 Received Heat Transfer 392 | . 120 252 . 20 Siege Activations . | . . . . . Robots Corrupted . | . . . . . Combat Hostiles . | . . . . . Parts Fried 2 | . 1 1 . . Impact Corruptions . | . . . . . Robots Melted . | . . . . . Combat Hostiles . | . . . . . Parts Melted 2 | . 1 . . 1 Heat Transferred 1603 | 25 700 693 . 185 Parts Sabotaged . | . . . . . Parts Stolen . | . . . . . Parts Stripped . | . . . . . Power Chain Reactions 1 | . 1 . . . Alert | -11 -10 -10 -10 -9 ------- Run | Yrd Mat Min Exi Min Peak Influence 277 | 10 277 176 . 70 Initial 61 | . 6 61 . . Average 69 | 3 104 54 . 32 Maximum Alert Level 1 | . 1 . . . Low Security (%) 93 | 100 83 100 . 100 Level 1 6 | . 16 . . . Level 2 . | . . . . . Level 3 . | . . . . . Level 4 . | . . . . . Level 5 . | . . . . . High Security . | . . . . . Max Security . | . . . . . Squads Dispatched 4 | . 4 . . . Investigation 2 | . 2 . . . Extermination . | . . . . . Reinforcement 2 | . 2 . . . Assault . | . . . . . Garrison . | . . . . . Intercept . | . . . . . Searches Triggered . | . . . . . Construction Impeded . | . . . . . Haulers Reinforced . | . . . . . Active Scanning Responses . | . . . . . Cargo Convoy Interrupts . | . . . . . Stealth | -11 -10 -10 -10 -9 --------- Run | Yrd Mat Min Exi Min Distress Signals . | . . . . . Communications Jammed . | . . . . . Distress Signals . | . . . . . Times Spotted 38 | . 18 8 . 12 Peak Tracking Total 5 | . 3 2 . 5 Tactical Retreats 3 | . 1 1 . 1 Traps | -11 -10 -10 -10 -9 ------- Run | Yrd Mat Min Exi Min Traps Triggered 2 | . 2 . . . Indirectly . | . . . . . Trap Hack Attempts . | . . . . . Triggered . | . . . . . Disarmed . | . . . . . Reprogrammed . | . . . . . Reused . | . . . . . Traps Extracted . | . . . . . Installed . | . . . . . Triggered . | . . . . . Machines | -11 -10 -10 -10 -9 ---------- Run | Yrd Mat Min Exi Min Machines Disabled . | . . . . . Max in Single Turn . | . . . . . Machines Repaired . | . . . . . Machines Dismantled . | . . . . . Machines Sabotaged . | . . . . . Overloaded Fab Kills . | . . . . . Hacking | -11 -10 -10 -10 -9 --------- Run | Yrd Mat Min Exi Min Machines Accessed 9 | . 5 . 4 . Terminals 5 | . 5 . . . Fabricators . | . . . . . Repair Stations . | . . . . . Recycling Units . | . . . . . Scanalyzers . | . . . . . Garrison Access . | . . . . . Total Hacks 19 | . 15 . 4 . Successful 10 | . 6 . 4 . Failed 9 | . 9 . . . Catastrophic 1 | . 1 . . . Database Lockouts . | . . . . . Manual 12 | . 12 . . . Terminals 15 | . 15 . . . Fabricators . | . . . . . Repair Stations . | . . . . . Recycling Units . | . . . . . Scanalyzers . | . . . . . Garrison Access . | . . . . . Terminal Hacks 10 | . 6 . 4 . Record 4 | . . . 4 . Robot Analysis 2 | . 2 . . . Prototype ID Bank 2 | . 2 . . . Branch Access Points 1 | . 1 . . . Locate Traps 1 | . 1 . . . Fabricator Hacks . | . . . . . Repair Station Hacks . | . . . . . Recycling Unit Hacks . | . . . . . Scanalyzer . | . . . . . Garrison Access Hacks . | . . . . . Unauthorized Hacks . | . . . . . Terminals . | . . . . . Fabricators . | . . . . . Repair Stations . | . . . . . Recycling Units . | . . . . . Scanalyzers . | . . . . . Garrison Access . | . . . . . Data Cores Recovered . | . . . . . Used . | . . . . . Hacking Detections 4 | . 4 . . . Full Trace Events 1 | . 1 . . . Feedback Events . | . . . . . Feedback Blocked . | . . . . . Robot Schematics Acquired . | . . . . . Robots Built . | . . . . . Authchips . | . . . . . Time . | . . . . . Total Robot Build Rating . | . . . . . Part Schematics Acquired . | . . . . . Parts Built . | . . . . . Authchips . | . . . . . Time . | . . . . . Total Part Build Rating . | . . . . . Parts Repaired . | . . . . . Time . | . . . . . Parts Recycled . | . . . . . Recycled Matter . | . . . . . Retrieved Matter . | . . . . . Retrieved Components . | . . . . . Parts Scanalyzed . | . . . . . Part Schematics Acquired . | . . . . . Parts Damaged . | . . . . . Bothacking | -11 -10 -10 -10 -9 ------------ Run | Yrd Mat Min Exi Min Used RIF Installer . | . . . . . Robots Hacked . | . . . . . Non-combat . | . . . . . Combat . | . . . . . Robot Hacks Applied . | . . . . . Relay Couplers Released . | . . . . . Fabnet Peak Effective % . | . . . . . Robots Rewired . | . . . . . Allies Hacked . | . . . . . Hacks Repelled . | . . . . . Allies | -11 -10 -10 -10 -9 -------- Run | Yrd Mat Min Exi Min Total Allies 1 | . . . . 1 Largest Group 1 | . . . . 1 Highest-Rated Group 31 | . . . . 31 Highest-Rated Ally 31 | . . . . 31 Total Orders . | . . . . . Ally Attacks 7 | . . . . 7 Total Damage 127 | . . . . 127 Kills 3 | . . . . 3 Allies Corrupted . | . . . . . Allies Melted . | . . . . . Intel | -11 -10 -10 -10 -9 ------- Run | Yrd Mat Min Exi Min Robot Analysis Total 2 | . 2 . . . Derelict Logs Recovered 1 | . . . . 1 Drone Launches . | . . . . . Drone Recoveries . | . . . . . Exploration | -11 -10 -10 -10 -9 ------------- Run | Yrd Mat Min Exi Min Turns Passed 2663 | 124 842 855 629 213 Spaces Moved 1473 | 63 398 403 493 116 Core 5 | 4 . . . 1 Treads 698 | 59 398 237 . 4 Legs . | . . . . . Wheels 770 | . . 166 493 111 Hover . | . . . . . Flight . | . . . . . Fastest Speed 50 | 50 160 110 125 95 Average Speed 151 | 153 160 182 125 128 Slowest Speed 350 | 160 160 240 125 350 Overloaded Moves . | . . . . . Propulsion Burnouts . | . . . . . Robots Hopped . | . . . . . Cave-ins Triggered . | . . . . . Exploration Rate (%) 56 | 4 73 78 92 33 Regions Visited 4 Branch Regions 3 Pre-discovered Areas . | . . . . . Known Exits Taken 1 | . 1 . . . Unknown Exits Taken 3 | 1 . 1 1 . Scrap Searched 2 | . . 1 . 1 Spaces Dug . | . . . . . Terrain Destroyed 3 | . 3 . . . Melee . | . . . . . Projectile . | . . . . . AOE 3 | . 3 . . . Terrain Rammed . | . . . . . Walls Destroyed . | . . . . . Machines Disabled . | . . . . . Actions | -11 -10 -10 -10 -9 --------- Run | Yrd Mat Min Exi Min Total 1706 | 82 520 463 496 145 Wait 71 | 2 54 15 . . Move 1469 | 62 397 402 492 116 Hop . | . . . . . Pick Up 28 | 8 14 4 . 2 Fast Attach 7 | 6 . 1 . . Attach 6 | 1 . 2 . 3 Detach . | . . . . . Swap 18 | . 6 6 1 5 Drop 13 | . 7 4 . 2 Fire 94 | 3 42 29 3 17 Melee . | . . . . . Ram . | . . . . . Kick . | . . . . . Crush . | . . . . . Escape Stasis . | . . . . . Rewire . | . . . . . Trap . | . . . . . Miscellaneous . | . . . . . Route ------- -11/Scrapyard -10/Materials (discovered 4 exits: [*Mat x3] / *Min) -10/Mines (discovered 4 exits: [*Mat x2] / *Exi / [*Sub]) -10/Exiles -9/Mines History --------- Turn | Location | Event 10 | -11/Scrapyard | Discovered new exit (range 15) 125 | -11/Scrapyard | Entered Materials 317 | -10/Materials | Build established: Mutant 376 | -10/Materials | Discovered new exit (range 15) 500 | -10/Materials | Identified exit to Mines 767 | -10/Materials | Discovered new exit (range 9) 931 | -10/Materials | Discovered new exit (range 4) 967 | -10/Materials | Entered Mines 988 | -10/Mines | Met a Derelict bent on vengeance 1023 | -10/Mines | Discovered new exit (range 7) 1101 | -10/Mines | Core integrity fell below 50% 1154 | -10/Mines | Discovered new exit (range 6) 1372 | -10/Mines | Joined a pair of Derelicts in attacking an 0b10 outpost 1699 | -10/Mines | Discovered new exit (range 3) 1817 | -10/Mines | Deemed a non-threat by the Exiles lab entrance 1817 | -10/Mines | Discovered new exit (range 5) 1822 | -10/Mines | Entered Exiles 1822 | -10/Exiles | Found Exiles lab abandoned 2441 | -10/Exiles | Discovered new exit (range 10) 2451 | -10/Exiles | Entered Mines 2491 | -9/Mines | Learned Materials stockpile data 2551 | -9/Mines | Escorted by a lone wolf Derelict 2588 | -9/Mines | Assembled infested the area 2593 | -9/Mines | Assisted by a Guerilla fighting off Assembled 2634 | -9/Mines | Core integrity fell below 20% 2664 | -9/Mines | Destroyed by as-82666 with Assembled Blade Last Messages --------------- 02641_ The unstable cave ceiling collapses. 02643_ Wheel destroyed. 02643_ U-05 Engineer builds a Wall. 02645_ The unstable cave ceiling collapses. 02647_ U-05 Engineer builds a Wall. 02649_ D-53 Grenadier destroyed. 02649_ Switching to secondary target: as-53477. 02650_ The unstable cave ceiling collapses. 02651_ U-05 Engineer lays Concrete. 02652_ U-05 Engineer builds a Wall. 02653_ The unstable cave ceiling collapses. 02656_ Assault Rifle destroyed. 02657_ Hvy. Assault Rifle destroyed. 02657_ U-05 Engineer destroyed. 02658_ The unstable cave ceiling collapses. 02658_ Terrain Scan Processor crushed. 02659_ The unstable cave ceiling collapses. 02660_ Lgt. Treads destroyed. 02661_ The unstable cave ceiling collapses. 02661_ Imp. Ion Engine destroyed. Map ----- +----------------------------------------------------+ | | | | | | | ?????????????????????????????????????????????????? | | ?????????????????????????????????????????????????? | | ???????????????????###???????????????????????????? | | ?????????????????## ##??????????????????????????? | | ???????????????## ##?????????????????????????? | | ?????? ???????# ##????????????????????????? | | ????## ??????? "###??????????????????????? | | ???## ??????? % ?????????????????????? | | ???# ?????## ????????????????????????? | | ???# ????## %#???????????????????????????? | | ???# #????# #???????????????????????????? | | ???# #???## #????????????????????????????? | | ??## ##?## ##????????????????????????????? | | ?## ### % ##?????????????????????????????? | | ?# #??????????????????????????????? | | ?# ##??????????????????????????????? | | ?# =%* ######???????????????????????????? | | ?## ### # ###?????????????????????????? | | ??## ##?# ##????????????????????????? | | ??## ##?# ###??????????????????????? | | ### ### a # #??????????????????????? | | ## # !#######??????????????????? | | ## a |%a@ % #??????????????????? | | ## ## #### # # ###### #??????????????????? | | #### ### ##??# # ##??????????????????????? | | ???# #?# #???# ##???????????????????????? | | ???# ? #???## # ##????????????????????????? | | ???###?# #????## ###?????????????????????????? | | ???????# ##????######???????????????????????????? | | ####??? ##????????????????????????????????????? | | #??# #????????????????????????????????????? | | ## #?# """ ????????????????????????????????????? | | ## ## """ ????????????????????????????????????? | | """ ?????????????????????????????? | | #?????????????????????????????????? | | ######## #?????????????????????????????????? | | #?????????? ##?????????????????????????????????? | | ##???????????????????????????????????????????????? | | ?????????????????????????????????????????????????? | | ?????????????????????????????????????????????????? | | ?????????????????????????????????????????????????? | | ?????????????????????????????????????????????????? | | ?????????????????????????????????????????????????? | | ?????????????????????????????????????????????????? | | ?????????????????????????????????????????????????? | | ?????????????????????????????????????????????????? | | ?????????????????????????????????????????????????? | +----------------------------------------------------+ Best States ------------- Heat Dissipation 39 Energy Generation 12 Energy Capacity 265 Matter Stores 300 Matter Capacity 300 Sight Range 16 Terrain Scan Density 10 Armor Coverage 150 Evasion (%) 41 Recoil Reduction 2 Item Schematics ----------------- None Robot Schematics ------------------ None Fabricated ------------ Nothing Alien Tech Used ----------------- None Achievements -------------- None Challenges ------------ None Game ------ Seed UltimateThermalTendrils Manual? 0 Play Time 00:21:37 Cumulative 54.4 hours Start 2024.05.05 @ 23:04:54 End 2024.05.05 @ 23:24:43 Sessions 1 Manual Loads 0 Difficulty Rogue Special Mode None Game No. 35 Rogue 35 Adventurer 0 Explorer 0 Win Type - Total 0 Types 0/0/0/0/0/0/0/0/0 Lore% 42 Gallery% 46 Achievement% 33 Wizard Run 0 Options --------- Layout 0 ASCII 0 Keyboard 0 Movement Mouse Keybinds 0 Fullscreen 2 Font 18/SmallcapsGlow Map View 76x50 Zoom Use 0% Tactical HUD 1 Map Filters NONE Filters NONE Steam 1 RUN: 3fa3bb07-35e8-4c3c-aeeb-00071de04429